[Event "CZE-tht Extraliga 2018-19"]
[Site "Czech Republic"]
[Date "2019.02.10"]
[Round "8.6"]
[White "Szotkowski, Jakub"]
[Black "Krejci, Jan"]
[Result "0-1"]
[ECO "D30"]
[WhiteElo "2345"]
[BlackElo "2558"]
[Annotator "ChessBase"]
[PlyCount "72"]
[EventDate "2018.11.03"]
[EventType "team-tourn"]
[EventCountry "CZE"]
[SourceTitle "playchess.com"]
[Source "ChessBase"]
[SourceQuality "1"]
[WhiteTeam "Beskydska"]
[BlackTeam "Novoborsky"]
[TimeControl "40/5400+30:1800+30"]

1. d4 {[%emt 0:00:00]} d5 {[%emt 0:00:00]} 2. c4 {[%emt 0:00:00]} e6 {[%emt 0:00:00]} 3. Nf3 {[%emt 0:00:00]} a6 {[%emt 0:00:00]} 4. g3 {[%emt 0:00:40]} dxc4 {[%emt 0:00:08]} 5. Bg2 {[%emt 0:00:08]} b5 {[%emt 0:00:23]} 6. Ne5 {[%emt 0:04:55]} c6 {[%emt 0:00:15]} 7. Nxc6 {[%emt 0:02:39]} Qb6 {[%emt 0:00:05]} 8. Na5 {[%emt 0:07:25]} Ra7 {[%emt 0:00:08]} 9. Qd2 {[%emt 0:26:15]} c3 {[%emt 0:05:20]} 10. Qxc3 {[%emt 0:00:20]} Rc7 {[%emt 0:00:04]} 11. Qd2 {[%emt 0:00:11]} Rxc1+ {[%emt 0:00:12]} 12. Qxc1 {[%emt 0:00:04]} Qxa5+ {[%emt 0:00:04]} 13. Nc3 {[%emt 0:02:09]} Nf6 {[%emt 0:15:01]} 14. O-O {[%emt 0:00:54]} Bd7 {[%emt 0:00:24]} 15. e4 {[%emt 0:07:14]} b4 {[%emt 0:01:04]} 16. e5 {[%emt 0:07:20]} bxc3 {[%emt 0:02:01]} 17. exf6 {[%emt 0:01:32]} gxf6 {[%emt 0:00:30]} 18. Qf4 {[%emt 0:03:05]} Qd8 {[%emt 0:01:48]} 19. bxc3 {[%emt 0:01:00]} Bg7 {[%emt 0:01:02]} 20. Rfb1 {[%emt 0:09:17]} O-O {[%emt 0:01:39]} 21. Rb7 {[%emt 0:00:32]} e5 {[%emt 0:05:13]} 22. Qh4 {[%emt 0:05:00]} Bf5 {[%emt 0:02:01]} 23. Be4 {[%emt 0:02:31]} Bxe4 {[%emt 0:06:21]} 24. Qxe4 {[%emt 0:00:09]} f5 25. Qxf5 {[%emt 0:00:38]} exd4 {[%emt 0:00:43]} 26. cxd4 {[%emt 0:02:26]} Nc6 {[%emt 0:13:39]} 27. Rd1 {[%emt 0:01:40]} Nxd4 {[%emt 0:01:16]} 28. Qd7 {[%emt 0:03:04]} Qf6 {[%emt 0:00:52]} 29. Qd5 {[%emt 0:01:24]} Ne2+ {[%emt 0:01:46]} 30. Kg2 {[%emt 0:03:30]} Nc3 {[%emt 0:00:06]} 31. Qd7 {[%emt 0:00:15]} Nxd1 {[%emt 0:00:21]} 32. Qxd1 {[%emt 0:00:04]} Qc6+ {[%emt 0:01:40]} 33. Qf3 {[%emt 0:00:04]} Qxf3+ {[%emt 0:00:04]} 34. Kxf3 {[%emt 0:00:03]} Rc8 {[%emt 0:00:07]} 35. Ra7 {[%emt 0:00:19]} Rc3+ {[%emt 0:00:03]} 36. Kg4 {[%emt 0:00:14]} Ra3 {[%emt 0:00:05]} 0-1

[Event "CZE-tht Extraliga 2018-19"]
[Site "Czech Republic"]
[Date "2019.02.10"]
[Round "8.6"]
[White "Cerveny, Martin"]
[Black "Pokorny, Petr"]
[Result "1-0"]
[ECO "D10"]
[WhiteElo "2343"]
[BlackElo "2222"]
[Annotator "NA"]
[PlyCount "133"]
[EventDate "2018.11.03"]
[EventType "team-tourn"]
[EventCountry "CZE"]
[SourceTitle "playchess.com"]
[Source "ChessBase"]
[SourceQuality "1"]
[WhiteTeam "Duras"]
[BlackTeam "Siesta B"]
[TimeControl "40/5400+30:1800+30"]

1. c4 {[%emt 0:00:00]} c6 {[%emt 0:00:00]} 2. d4 {[%emt 0:00:04]} d5 {[%emt 0:00:00]} 3. cxd5 {[%emt 0:00:10]} cxd5 {[%emt 0:00:04]} 4. Nc3 {[%emt 0:00:07]} Nf6 {[%emt 0:04:26]} 5. Bf4 {[%emt 0:00:08]} Qb6 {[%emt 0:00:51]} 6. Qb3 {[%emt 0:30:44]} Qxb3 {[%emt 0:00:23]} 7. axb3 {[%emt 0:00:03]} Na6 {[%emt 0:00:42]} 8. e3 {[%emt 0:02:33]} e6 {[%emt 0:03:21]} 9. Nf3 {[%emt 0:06:50]} Be7 {[%emt 0:06:35]} 10. Ne5 {[%emt 0:00:32]} Nh5 {[%emt 0:08:34]} 11. Bb5+ {[%emt 0:04:19]} Kf8 {[%emt 0:00:35]} 12. O-O {[%emt 0:08:41]} Nxf4 {[%emt 0:07:43]} 13. exf4 {[%emt 0:02:37]} f6 {[%emt 0:00:13]} 14. Nd3 {[%emt 0:01:41]} Nb4 {[%emt 0:04:54]} 15. Rfc1 {[%emt 0:01:51]} Nxd3 {[%emt 0:16:27]} 16. Bxd3 {[%emt 0:01:54]} Bd7 {[%emt 0:00:18]} 17. Bb5 {[%emt 0:06:35]} Bc6 {[%emt 0:04:26]} 18. Bxc6 {[%emt 0:02:06]} bxc6 {[%emt 0:00:04]} 19. Ra6 {[%emt 0:00:25]} Kf7 {[%emt 0:00:35]} 20. Rxc6 {[%emt 0:04:27]} Rhc8 {[%emt 0:02:11]} 21. Ra6 {[%emt 0:00:18]} Bb4 {[%emt 0:00:31]} 22. g3 {[%emt 0:01:40]} Rc7 {[%emt 0:00:52]} 23. Na2 {[%emt 0:01:26]} Rxc1+ {[%emt 0:04:08]} 24. Nxc1 {[%emt 0:00:05]} Be7 {[%emt 0:00:43]} 25. f5 {[%emt 0:02:00]} exf5 {[%emt 0:02:28]} 26. Ne2 {[%emt 0:02:07]} Bd8 {[%emt 0:05:28]} 27. Rd6 {[%emt 0:01:57]} Ke7 {[%emt 0:03:38]} 28. Rxd5 {[%emt 0:00:16]} Rb8 {[%emt 0:00:06]} 29. Nc1 {[%emt 0:01:14]} Rb4 {[%emt 0:01:18]} 30. Nd3 {[%emt 0:01:03]} Rxb3 {[%emt 0:02:06]} 31. Nc5 {[%emt 0:00:06]} Rxb2 {[%emt 0:00:17]} 32. Rd7+ {[%emt 0:00:05]} Ke8 {[%emt 0:00:06]} 33. Rxa7 {[%emt 0:00:33]} Be7 {[%emt 0:02:09]} 34. Ne6 {[%emt 0:00:02]} g6 {[%emt 0:00:29]} 35. Nc7+ {[%emt 0:00:53]} Kf7 {[%emt 0:01:53]} 36. Nd5 {[%emt 0:00:21]} Re2 {[%emt 0:00:20]} 37. Kf1 {[%emt 0:08:37]} Re4 {[%emt 0:00:32]} 38. f3 {[%emt 0:02:26]} Re6 {[%emt 0:00:04]} 39. Kf2 {[%emt 0:01:03]} Kf8 {[%emt 0:00:30]} 40. h4 {[%emt 0:00:18]} Bd8 {[%emt 0:02:31]} 41. Ra8 {[%emt 0:12:34]} Rd6 {[%emt 0:00:00]} 42. Nxf6 {[%emt 0:04:39]} Rxd4 {[%emt 0:04:10]} 43. Nxh7+ {[%emt 0:00:35]} Kg7 {[%emt 0:00:14]} 44. Ra7+ {[%emt 0:00:24]} Kg8 {[%emt 0:00:05]} 45. Kg2 {[%emt 0:05:20]} Rd2+ {[%emt 0:02:22]} 46. Kh3 {[%emt 0:02:33]} Rf2 {[%emt 0:01:16]} 47. f4 {[%emt 0:00:47]} Rd2 {[%emt 0:00:15]} 48. Rb7 {[%emt 0:00:42]} Kh8 {[%emt 0:00:59]} 49. Nf8 {[%emt 0:00:25]} Rd6 {[%emt 0:00:48]} 50. Rb8 {[%emt 0:01:32]} Bc7 {[%emt 0:02:20]} 51. Nxg6+ {[%emt 0:02:07]} Kg7 {[%emt 0:00:01]} 52. Rb7 {[%emt 0:00:07]} Kxg6 {[%emt 0:00:04]} 53. Rxc7 {[%emt 0:00:04]} Rd3 {[%emt 0:00:47]} 54. Rc6+ {[%emt 0:00:42]} Kh5 {[%emt 0:00:04]} 55. Rc5 {[%emt 0:00:09]} Kg6 {[%emt 0:00:17]} 56. h5+ {[%emt 0:00:08]} Kf6 {[%emt 0:00:18]} 57. Rc6+ {[%emt 0:00:05]} Kg7 {[%emt 0:00:22]} 58. Kh4 {[%emt 0:00:05]} Ra3 {[%emt 0:01:06]} 59. h6+ {[%emt 0:01:13]} Kh7 {[%emt 0:01:56]} 60. Rf6 {[%emt 0:00:12]} Ra5 {[%emt 0:00:13]} 61. Kh5 {[%emt 0:01:12]} Ra3 {[%emt 0:00:23]} 62. Rg6 {[%emt 0:00:25]} Rb3 {[%emt 0:00:59]} 63. Rg7+ {[%emt 0:00:14]} Kh8 {[%emt 0:00:04]} 64. Kh4 {[%emt 0:03:18]} Rb1 {[%emt 0:01:29]} 65. Kg5 {[%emt 0:01:34]} Rb3 {[%emt 0:00:40]} 66. Kxf5 {[%emt 0:00:41]} Rb5+ {[%emt 0:00:05]} 67. Ke4 1-0

[Event "CZE-tht Extraliga 2018-19"]
[Site "Czech Republic"]
[Date "2019.02.10"]
[Round "8.6"]
[White "Obsivac, Josef"]
[Black "Kislinsky, Alexey"]
[Result "0-1"]
[ECO "A57"]
[WhiteElo "2282"]
[BlackElo "2426"]
[Annotator "NA"]
[PlyCount "148"]
[EventDate "2018.11.03"]
[EventType "team-tourn"]
[EventCountry "CZE"]
[SourceTitle "playchess.com"]
[Source "ChessBase"]
[SourceQuality "1"]
[WhiteTeam "Brno"]
[BlackTeam "Lysa nad Labem"]
[TimeControl "40/5400+30:1800+30"]

1. d4 {[%emt 0:00:00]} Nf6 {[%emt 0:00:00]} 2. c4 {[%emt 0:00:00]} c5 {[%emt 0:00:00]} 3. d5 {[%emt 0:00:00]} b5 {[%emt 0:00:11]} 4. Nd2 {[%emt 0:00:26]} bxc4 {[%emt 0:00:32]} 5. e4 {[%emt 0:00:11]} c3 {[%emt 0:02:10]} 6. bxc3 {[%emt 0:00:19]} g6 {[%emt 0:00:07]} 7. Ngf3 {[%emt 0:01:20]} Bg7 {[%emt 0:00:29]} 8. Bd3 {[%emt 0:04:38]} O-O {[%emt 0:00:29]} 9. O-O {[%emt 0:00:58]} d6 {[%emt 0:00:14]} 10. Rb1 {[%emt 0:01:33]} Nbd7 {[%emt 0:01:30]} 11. Re1 {[%emt 0:06:59]} Qc7 {[%emt 0:01:28]} 12. c4 {[%emt 0:02:25]} Nh5 {[%emt 0:01:47]} 13. Bf1 {[%emt 0:07:10]} Nb6 {[%emt 0:01:09]} 14. Qc2 {[%emt 0:03:32]} Bd7 {[%emt 0:00:43]} 15. Bb2 {[%emt 0:05:12]} Bxb2 {[%emt 0:01:26]} 16. Rxb2 {[%emt 0:01:23]} f6 {[%emt 0:02:45]} 17. Re3 {[%emt 0:08:17]} Rab8 {[%emt 0:01:53]} 18. Ra3 {[%emt 0:10:55]} Rb7 {[%emt 0:03:58]} 19. Nb1 {[%emt 0:05:07]} Rfb8 {[%emt 0:07:46]} 20. Nc3 {[%emt 0:05:12]} Qd8 {[%emt 0:00:28]} 21. Nd2 {[%emt 0:02:40]} Qe8 {[%emt 0:07:47]} 22. g3 {[%emt 0:03:32]} Ng7 {[%emt 0:03:01]} 23. Qb1 {[%emt 0:04:25]} f5 {[%emt 0:02:13]} 24. Nb5 {[%emt 0:05:04]} Bxb5 {[%emt 0:01:55]} 25. cxb5 {[%emt 0:01:08]} fxe4 {[%emt 0:00:22]} 26. Qxe4 {[%emt 0:00:22]} Nd7 {[%emt 0:02:28]} 27. Nc4 {[%emt 0:02:02]} Nf6 {[%emt 0:00:52]} 28. Qd3 {[%emt 0:00:48]} Rc7 {[%emt 0:10:09]} 29. Ra6 {[%emt 0:04:22]} Qf7 {[%emt 0:05:53]} 30. Bg2 {[%emt 0:00:15]} Nd7 {[%emt 0:04:58]} 31. a4 {[%emt 0:02:02]} Nb6 {[%emt 0:02:23]} 32. a5 {[%emt 0:03:51]} Nxc4 {[%emt 0:00:08]} 33. Qxc4 {[%emt 0:00:03]} Qf6 {[%emt 0:00:15]} 34. Rb1 {[%emt 0:01:05]} Nf5 {[%emt 0:03:26]} 35. Rc6 {[%emt 0:03:15]} Rcb7 {[%emt 0:01:26]} 36. b6 {[%emt 0:02:01]} Nd4 {[%emt 0:01:47]} 37. Qa6 {[%emt 0:00:46]} Qf5 {[%emt 0:01:44]} 38. Re1 {[%emt 0:01:46]} axb6 {[%emt 0:04:10]} 39. Rxb6 {[%emt 0:01:06]} Rxb6 {[%emt 0:02:40]} 40. axb6 {[%emt 0:00:07]} Qd7 {[%emt 0:00:24]} 41. h4 {[%emt 0:18:20]} Kf8 {[%emt 0:02:57]} 42. Rb1 {[%emt 0:01:36]} Qb7 {[%emt 0:01:44]} 43. Qd3 {[%emt 0:02:36]} Qd7 {[%emt 0:01:50]} 44. Kh2 {[%emt 0:02:50]} Qf5 {[%emt 0:01:12]} 45. Qxf5+ {[%emt 0:01:35]} gxf5 {[%emt 0:00:18]} 46. Bf1 {[%emt 0:01:10]} h6 {[%emt 0:03:13]} 47. Bd3 {[%emt 0:00:24]} Kf7 {[%emt 0:00:38]} 48. Kg2 {[%emt 0:00:31]} e5 {[%emt 0:00:57]} 49. dxe6+ {[%emt 0:00:23]} Kxe6 {[%emt 0:00:04]} 50. b7 {[%emt 0:02:52]} Kd5 {[%emt 0:01:51]} 51. Ba6 {[%emt 0:00:33]} Kc6 {[%emt 0:00:54]} 52. Kf1 {[%emt 0:02:48]} d5 {[%emt 0:00:31]} 53. Ke1 {[%emt 0:00:16]} c4 {[%emt 0:00:46]} 54. Kd2 {[%emt 0:00:33]} Nb3+ {[%emt 0:01:12]} 55. Kc3 {[%emt 0:00:24]} Nc5 {[%emt 0:01:06]} 56. Ra1 {[%emt 0:02:46]} Kb6 {[%emt 0:01:31]} 57. Bxc4 {[%emt 0:00:39]} Ne4+ {[%emt 0:00:13]} 58. Kd4 {[%emt 0:01:26]} dxc4 {[%emt 0:00:06]} 59. Kxc4 {[%emt 0:00:07]} Nxf2 {[%emt 0:01:21]} 60. Rb1+ {[%emt 0:01:18]} Kc6 {[%emt 0:00:06]} 61. Kd4 {[%emt 0:00:06]} Ng4 {[%emt 0:03:15]} 62. Rf1 {[%emt 0:00:11]} Rxb7 {[%emt 0:01:34]} 63. Rxf5 {[%emt 0:00:07]} Rb4+ {[%emt 0:01:11]} 64. Kd3 {[%emt 0:01:26]} Kd6 {[%emt 0:01:57]} 65. Ra5 {[%emt 0:00:27]} Ke6 {[%emt 0:00:51]} 66. Rc5 {[%emt 0:00:33]} Rb3+ {[%emt 0:00:18]} 67. Ke4 {[%emt 0:00:10]} Nf2+ {[%emt 0:01:49]} 68. Kd4 {[%emt 0:00:12]} Rd3+ {[%emt 0:02:20]} 69. Kc4 {[%emt 0:00:01]} Rd6 {[%emt 0:00:08]} 70. Rc8 {[%emt 0:01:10]} Kf5 {[%emt 0:01:16]} 71. Rf8+ {[%emt 0:00:03]} Rf6 {[%emt 0:00:06]} 72. Rg8 {[%emt 0:00:04]} Ng4 {[%emt 0:00:38]} 73. Kd5 {[%emt 0:00:36]} Ra6 {[%emt 0:01:26]} 74. Kd4 {[%emt 0:00:18]} Ra4+ {[%emt 0:00:07]} 0-1

[Event "CZE-tht Extraliga 2018-19"]
[Site "Czech Republic"]
[Date "2019.02.10"]
[Round "8.7"]
[White "Bures, Jaroslav"]
[Black "Petr, Martin"]
[Result "0-1"]
[ECO "D31"]
[WhiteElo "2395"]
[BlackElo "2447"]
[Annotator "NA"]
[PlyCount "94"]
[EventDate "2018.11.03"]
[EventType "team-tourn"]
[EventCountry "CZE"]
[SourceTitle "playchess.com"]
[Source "ChessBase"]
[SourceQuality "1"]
[WhiteTeam "Poruba"]
[BlackTeam "Pardubice"]
[TimeControl "40/5400+30:1800+30"]

1. d4 {[%emt 0:00:00]} d5 {[%emt 0:00:47]} 2. c4 {[%emt 0:00:00]} e6 {[%emt 0:00:05]} 3. Nc3 {[%emt 0:00:00]} a6 {[%emt 0:00:03]} 4. cxd5 {[%emt 0:03:45]} exd5 {[%emt 0:00:07]} 5. Bf4 {[%emt 0:00:03]} Nf6 {[%emt 0:00:18]} 6. e3 {[%emt 0:00:22]} Bd6 {[%emt 0:00:09]} 7. Bxd6 {[%emt 0:03:14]} Qxd6 {[%emt 0:00:06]} 8. Bd3 {[%emt 0:00:02]} O-O {[%emt 0:00:50]} 9. Nge2 {[%emt 0:02:02]} Re8 {[%emt 0:07:01]} 10. Rb1 {[%emt 0:11:06]} Nc6 {[%emt 0:06:42]} 11. a3 {[%emt 0:00:34]} Ne7 {[%emt 0:00:56]} 12. Ng3 {[%emt 0:06:01]} Ng6 {[%emt 0:04:11]} 13. O-O {[%emt 0:01:22]} Nh4 {[%emt 0:04:39]} 14. Re1 {[%emt 0:04:27]} Bd7 {[%emt 0:04:23]} 15. e4 {[%emt 0:14:41]} dxe4 {[%emt 0:00:43]} 16. Ncxe4 {[%emt 0:00:04]} Nxe4 {[%emt 0:03:26]} 17. Rxe4 {[%emt 0:00:48]} Ng6 {[%emt 0:04:13]} 18. Rxe8+ {[%emt 0:11:18]} Rxe8 {[%emt 0:00:11]} 19. Be4 {[%emt 0:00:02]} b6 {[%emt 0:07:43]} 20. Qc2 {[%emt 0:02:12]} Re7 {[%emt 0:04:41]} 21. Rd1 {[%emt 0:07:42]} a5 {[%emt 0:00:57]} 22. h3 {[%emt 0:05:15]} h6 {[%emt 0:01:52]} 23. Nf5 {[%emt 0:07:56]} Bxf5 {[%emt 0:00:11]} 24. Bxf5 {[%emt 0:00:01]} Nf4 {[%emt 0:01:52]} 25. Bg4 {[%emt 0:00:25]} Qf6 {[%emt 0:14:13]} 26. Kh2 {[%emt 0:03:41]} h5 {[%emt 0:02:32]} 27. Bf3 {[%emt 0:00:16]} g5 {[%emt 0:03:24]} 28. Qc1 {[%emt 0:00:47]} g4 {[%emt 0:02:11]} 29. hxg4 {[%emt 0:01:43]} hxg4 {[%emt 0:00:05]} 30. Kg3 {[%emt 0:01:25]} Re4 {[%emt 0:07:16]} 31. Bxe4 {[%emt 0:06:12]} Ne2+ {[%emt 0:00:06]} 32. Kxg4 {[%emt 0:00:05]} Nxc1 {[%emt 0:00:06]} 33. Rxc1 {[%emt 0:00:03]} Qxf2 {[%emt 0:01:38]} 34. Rc2 {[%emt 0:02:50]} Qxd4 {[%emt 0:00:12]} 35. Kf3 {[%emt 0:00:22]} c5 {[%emt 0:08:25]} 36. g4 {[%emt 0:00:06]} b5 {[%emt 0:00:12]} 37. Bf5 {[%emt 0:00:07]} b4 {[%emt 0:02:09]} 38. axb4 {[%emt 0:00:01]} cxb4 {[%emt 0:00:08]} 39. Ke2 {[%emt 0:00:03]} a4 {[%emt 0:00:15]} 40. Rd2 {[%emt 0:00:26]} Qc4+ {[%emt 0:02:57]} 41. Kd1 {[%emt 0:30:58]} Qf1+ {[%emt 0:30:16]} 42. Kc2 {[%emt 0:00:08]} b3+ {[%emt 0:00:05]} 43. Kc3 {[%emt 0:00:02]} Qc1+ {[%emt 0:00:06]} 44. Kd3 {[%emt 0:00:16]} a3 {[%emt 0:02:08]} 45. bxa3 {[%emt 0:00:04]} b2 {[%emt 0:00:07]} 46. Ke2 {[%emt 0:01:12]} b1=Q {[%emt 0:00:13]} 47. Bxb1 {[%emt 0:00:20]} Qxb1 {[%emt 0:00:04]} 0-1

[Event "CZE-tht Extraliga 2018-19"]
[Site "Czech Republic"]
[Date "2019.02.10"]
[Round "8.7"]
[White "Kovar, Vojtech"]
[Black "Kawulok, Marek"]
[Result "1/2-1/2"]
[ECO "A15"]
[WhiteElo "2237"]
[BlackElo "2198"]
[Annotator "NA"]
[PlyCount "47"]
[EventDate "2018.11.03"]
[EventType "team-tourn"]
[EventCountry "CZE"]
[SourceTitle "playchess.com"]
[Source "ChessBase"]
[SourceQuality "1"]
[WhiteTeam "Siesta"]
[BlackTeam "Cesky Tesin"]
[TimeControl "40/5400+30:1800+30"]

1. c4 {[%emt 0:01:02]} Nf6 {[%emt 0:00:00]} 2. g3 {[%emt 0:00:18]} g6 {[%emt 0:00:00]} 3. b4 {[%emt 0:00:12]} Bg7 {[%emt 0:00:00]} 4. Bb2 {[%emt 0:00:02]} d6 {[%emt 0:01:33]} 5. Bg2 {[%emt 0:00:33]} O-O {[%emt 0:00:14]} 6. Nf3 {[%emt 0:00:12]} a5 {[%emt 0:02:46]} 7. b5 {[%emt 0:00:37]} c5 {[%emt 0:01:51]} 8. bxc6 {[%emt 0:02:09]} Nxc6 {[%emt 0:00:46]} 9. Nc3 {[%emt 0:06:36]} Ne4 {[%emt 0:11:31]} 10. Qc1 {[%emt 0:01:01]} Nxc3 {[%emt 0:00:49]} 11. Bxc3 {[%emt 0:00:02]} e5 {[%emt 0:00:08]} 12. Qb2 {[%emt 0:10:50]} f5 {[%emt 0:03:36]} 13. d3 {[%emt 0:02:24]} Qe7 {[%emt 0:08:14]} 14. Nd2 {[%emt 0:01:24]} Bh6 {[%emt 0:08:42]} 15. Rb1 {[%emt 0:02:50]} Rf7 {[%emt 0:01:21]} 16. c5 {[%emt 0:13:59]} Be6 {[%emt 0:20:45]} 17. Nc4 {[%emt 0:01:42]} Bxc4 {[%emt 0:01:07]} 18. Bxc6 {[%emt 0:04:51]} Bxd3 {[%emt 0:08:56]} 19. Qxb7 {[%emt 0:01:31]} Qxb7 {[%emt 0:09:54]} 20. Rxb7 {[%emt 0:00:37]} Be4 {[%emt 0:00:05]} 21. Bxe4 {[%emt 0:05:55]} fxe4 {[%emt 0:00:02]} 22. Rb5 {[%emt 0:00:55]} Rc7 {[%emt 0:01:00]} 23. Bd2 {[%emt 0:01:19]} e3 {[%emt 0:02:53]} 24. Bxe3 {[%emt 0:03:44]} 1/2-1/2

[Event "CZE-tht Extraliga 2018-19"]
[Site "Czech Republic"]
[Date "2019.02.10"]
[Round "8.7"]
[White "Bartos, Jan"]
[Black "Chytilek, Roman"]
[Result "1/2-1/2"]
[ECO "A46"]
[WhiteElo "2193"]
[BlackElo "2334"]
[Annotator "NA"]
[PlyCount "46"]
[EventDate "2018.11.03"]
[EventType "team-tourn"]
[EventCountry "CZE"]
[SourceTitle "playchess.com"]
[Source "ChessBase"]
[SourceQuality "1"]
[WhiteTeam "Siesta B"]
[BlackTeam "Duras"]
[TimeControl "40/5400+30:1800+30"]

1. d4 {[%emt 0:00:00]} Nf6 {[%emt 0:00:02]} 2. Nf3 {[%emt 0:01:30]} c5 {[%emt 0:02:01]} 3. e3 {[%emt 0:00:42]} g6 {[%emt 0:00:36]} 4. dxc5 {[%emt 0:00:08]} Qa5+ {[%emt 0:02:00]} 5. Bd2 {[%emt 0:00:15]} Qxc5 {[%emt 0:00:41]} 6. c4 {[%emt 0:00:07]} Bg7 {[%emt 0:02:25]} 7. Bc3 {[%emt 0:00:11]} O-O {[%emt 0:01:38]} 8. Nbd2 {[%emt 0:00:07]} d6 {[%emt 0:04:26]} 9. Be2 {[%emt 0:02:02]} Qc7 {[%emt 0:01:22]} 10. O-O {[%emt 0:00:25]} b6 {[%emt 0:01:16]} 11. b4 {[%emt 0:02:21]} Bb7 {[%emt 0:02:08]} 12. Qb3 {[%emt 0:01:28]} Nbd7 {[%emt 0:03:32]} 13. Rac1 {[%emt 0:01:43]} Rac8 {[%emt 0:02:46]} 14. Qb2 {[%emt 0:01:58]} Qb8 {[%emt 0:05:04]} 15. Rfd1 {[%emt 0:06:39]} Rfd8 {[%emt 0:05:26]} 16. Nd4 {[%emt 0:09:02]} Qa8 {[%emt 0:08:12]} 17. Bf1 {[%emt 0:02:26]} Ne5 {[%emt 0:07:21]} 18. N4b3 {[%emt 0:01:56]} Ned7 {[%emt 0:07:23]} 19. a4 {[%emt 0:05:32]} Qb8 {[%emt 0:00:52]} 20. a5 {[%emt 0:00:59]} bxa5 {[%emt 0:05:04]} 21. Nxa5 {[%emt 0:00:18]} Ba8 {[%emt 0:00:11]} 22. Ra1 {[%emt 0:06:30]} Qc7 {[%emt 0:15:12]} 23. Nab3 {[%emt 0:13:37]} Rb8 {[%emt 0:03:38]} 1/2-1/2

[Event "CZE-tht Extraliga 2018-19"]
[Site "Czech Republic"]
[Date "2019.02.10"]
[Round "8.7"]
[White "Krajina, Ales"]
[Black "Cech, Pavel"]
[Result "1/2-1/2"]
[ECO "C01"]
[WhiteElo "2118"]
[BlackElo "2325"]
[Annotator "NA"]
[PlyCount "34"]
[EventDate "2018.11.03"]
[EventType "team-tourn"]
[EventCountry "CZE"]
[SourceTitle "playchess.com"]
[Source "ChessBase"]
[SourceQuality "1"]
[WhiteTeam "Ostrava"]
[BlackTeam "Turnov"]
[TimeControl "40/5400+30:1800+30"]

1. e4 {[%emt 0:00:02]} e6 {[%emt 0:00:00]} 2. d4 {[%emt 0:00:56]} d5 {[%emt 0:00:00]} 3. exd5 {[%emt 0:00:48]} exd5 {[%emt 0:00:00]} 4. Bd3 {[%emt 0:00:35]} Nf6 {[%emt 0:03:24]} 5. c3 {[%emt 0:03:44]} Bd6 {[%emt 0:06:01]} 6. Bg5 {[%emt 0:05:19]} O-O {[%emt 0:03:06]} 7. Qc2 {[%emt 0:07:40]} h6 {[%emt 0:10:47]} 8. Bh4 {[%emt 0:01:28]} c5 {[%emt 0:12:07]} 9. dxc5 {[%emt 0:02:10]} Bxc5 {[%emt 0:00:12]} 10. Ne2 {[%emt 0:00:12]} Nc6 {[%emt 0:07:42]} 11. Nd2 {[%emt 0:02:50]} Re8 {[%emt 0:07:25]} 12. Nb3 {[%emt 0:03:36]} Bb6 {[%emt 0:05:18]} 13. O-O {[%emt 0:03:36]} Bg4 {[%emt 0:03:18]} 14. Rae1 {[%emt 0:06:19]} Rc8 {[%emt 0:03:19]} 15. Qd2 {[%emt 0:03:20]} Ne5 {[%emt 0:04:58]} 16. Ned4 {[%emt 0:05:59]} Nxd3 {[%emt 0:11:54]} 17. Qxd3 {[%emt 0:04:59]} g5 {[%emt 0:02:51]} 1/2-1/2

[Event "CZE-tht Extraliga 2018-19"]
[Site "Czech Republic"]
[Date "2019.02.10"]
[Round "8.8"]
[White "Vymazal, Bronislav"]
[Black "Priehoda, Vitezslav"]
[Result "1/2-1/2"]
[ECO "D38"]
[WhiteElo "2366"]
[BlackElo "2362"]
[Annotator "NA"]
[PlyCount "64"]
[EventDate "2018.11.03"]
[EventType "team-tourn"]
[EventCountry "CZE"]
[SourceTitle "playchess.com"]
[Source "ChessBase"]
[SourceQuality "1"]
[WhiteTeam "Brno"]
[BlackTeam "Lysa nad Labem"]
[TimeControl "40/5400+30:1800+30"]

1. d4 {[%emt 0:00:00]} Nf6 {[%emt 0:00:51]} 2. c4 {[%emt 0:00:00]} e6 {[%emt 0:00:04]} 3. Nf3 {[%emt 0:00:07]} d5 {[%emt 0:01:23]} 4. Nc3 {[%emt 0:01:17]} Bb4 {[%emt 0:03:14]} 5. cxd5 {[%emt 0:02:10]} exd5 {[%emt 0:00:08]} 6. Bg5 {[%emt 0:00:05]} h6 {[%emt 0:00:22]} 7. Bh4 {[%emt 0:00:31]} c5 {[%emt 0:06:31]} 8. e3 {[%emt 0:11:22]} Nbd7 {[%emt 0:10:25]} 9. Be2 {[%emt 0:10:16]} Qa5 {[%emt 0:10:36]} 10. O-O {[%emt 0:15:13]} Bxc3 {[%emt 0:05:50]} 11. bxc3 {[%emt 0:00:05]} c4 {[%emt 0:03:41]} 12. Qc2 {[%emt 0:04:21]} Ne4 {[%emt 0:10:02]} 13. Rac1 {[%emt 0:01:12]} Nb6 {[%emt 0:03:40]} 14. Nd2 {[%emt 0:03:27]} Bf5 {[%emt 0:10:14]} 15. Nxe4 {[%emt 0:01:06]} Bxe4 {[%emt 0:01:11]} 16. Qd2 {[%emt 0:00:30]} O-O {[%emt 0:00:34]} 17. f3 {[%emt 0:10:53]} Bg6 {[%emt 0:01:57]} 18. Rfe1 {[%emt 0:01:02]} Rfe8 {[%emt 0:00:15]} 19. Bf1 {[%emt 0:01:11]} Rac8 {[%emt 0:05:34]} 20. Qb2 {[%emt 0:14:00]} Rc6 {[%emt 0:02:23]} 21. g4 {[%emt 0:03:06]} Rce6 {[%emt 0:06:43]} 22. Bf2 {[%emt 0:00:13]} Qa4 {[%emt 0:02:52]} 23. Bg2 {[%emt 0:01:00]} Qd7 {[%emt 0:02:45]} 24. Qb4 {[%emt 0:02:26]} Na4 {[%emt 0:04:04]} 25. h3 {[%emt 0:08:19]} Rb6 {[%emt 0:00:31]} 26. Qa3 {[%emt 0:03:21]} Nb2 {[%emt 0:00:26]} 27. Bf1 {[%emt 0:00:22]} Nd3 {[%emt 0:02:11]} 28. Bxd3 {[%emt 0:00:05]} Bxd3 {[%emt 0:00:02]} 29. Qxa7 {[%emt 0:01:04]} Ra6 {[%emt 0:00:15]} 30. Qc5 {[%emt 0:00:05]} Rc8 {[%emt 0:02:00]} 31. Qb4 {[%emt 0:00:21]} Rxa2 {[%emt 0:00:09]} 32. Ra1 {[%emt 0:02:50]} Rca8 {[%emt 0:00:07]} 1/2-1/2

[Event "CZE-tht Extraliga 2018-19"]
[Site "Czech Republic"]
[Date "2019.02.10"]
[Round "8.8"]
[White "Vesselovsky, Serguei"]
[Black "Kriebel, Tadeas"]
[Result "1/2-1/2"]
[ECO "B23"]
[WhiteElo "2339"]
[BlackElo "2513"]
[Annotator "ChessBase"]
[PlyCount "41"]
[EventDate "2018.11.03"]
[EventType "team-tourn"]
[EventCountry "CZE"]
[SourceTitle "playchess.com"]
[Source "ChessBase"]
[SourceQuality "1"]
[WhiteTeam "Beskydska"]
[BlackTeam "Novoborsky"]
[TimeControl "40/5400+30:1800+30"]

1. e4 {[%emt 0:00:00]} c5 {[%emt 0:00:00]} 2. Nc3 {[%emt 0:00:32]} d6 {[%emt 0:02:00]} 3. Nge2 {[%emt 0:01:00]} e5 {[%emt 0:00:51]} 4. Nd5 {[%emt 0:03:43]} Ne7 {[%emt 0:06:05]} 5. Nec3 {[%emt 0:01:45]} Nxd5 {[%emt 0:00:25]} 6. Nxd5 {[%emt 0:01:08]} Be6 {[%emt 0:05:36]} 7. Bc4 {[%emt 0:02:02]} Be7 {[%emt 0:03:10]} 8. d3 {[%emt 0:01:30]} O-O {[%emt 0:00:32]} 9. O-O {[%emt 0:02:34]} Nc6 {[%emt 0:05:36]} 10. f4 exf4 11. Bxf4 {[%emt 0:19:08]} Rb8 {[%emt 0:03:30]} 12. a4 {[%emt 0:03:48]} a6 {[%emt 0:06:24]} 13. c3 {[%emt 0:22:43]} b5 {[%emt 0:19:49]} 14. axb5 {[%emt 0:00:24]} axb5 {[%emt 0:00:04]} 15. Bb3 {[%emt 0:02:25]} c4 {[%emt 0:13:16]} 16. dxc4 {[%emt 0:10:17]} bxc4 {[%emt 0:00:22]} 17. Bxc4 {[%emt 0:00:56]} Rxb2 18. Qc1 Rb8 {[%emt 0:04:52]} 19. Qa3 {[%emt 0:17:42]} Bxd5 {[%emt 0:02:25]} 20. Bxd5 {[%emt 0:00:38]} Ne5 {[%emt 0:02:00]} 21. Bxe5 {[%emt 0:01:51]} 1/2-1/2